{"text_format":"3","workbook":"xlsx","n_sheets":2,"sheets":["Sākums","Kāzu budžets"],"read":"whole","date_system":"1900"}

{"sheet":"Sākums","index":0,"n_rows":7,"n_cols":2,"rows_kept":7}
[null,"PAR ŠO VEIDNI"]
[null,"Izmantojiet šo veidni, lai reģistrētu faktiskos kāzu izdevumus par dažādiem vienumiem un sekoto līdzi budžetā paredzētajām summām."]
[null,"Attiecīgajās tabulās ievadiet izdevumus par apģērbu, dekorācijām, dāvanām, ziediem, mūziku, fotografēšanu, viesu uzņemšanu, kancelejas precēm, transportu un citiem vienumiem."]
[null,"Kopējās Plānotās un faktiskās izmaksas tiek aprēķinātas automātiski."]
[null,"Piezīme. "]
[null,"Darblapas KĀZU BUDŽETS kolonnā A ir sniegti papildu norādījumi. Šis teksts ir paslēpts ar nolūku. Lai tekstu noņemtu, atlasiet kolonnu A, pēc tam atlasiet DZĒST. Lai parādītu slēpto tekstu, atlasiet kolonnu A, pēc tam nomainiet fonta krāsu."]
[null,"Lai iegūtu papildinformāciju par tabulām, tabulā nospiediet taustiņu SHIFT un pēc tam F10, atlasiet opciju TABULA un pēc tam atlasiet ALTERNATĪVAIS TEKSTS."]

{"sheet":"Kāzu budžets","index":1,"n_rows":93,"n_cols":4,"rows_kept":93,"merged":[[0,1,0,3],[2,1,2,3],[6,1,6,3],[15,1,15,3],[25,1,25,3],[34,1,34,3],[43,1,43,3],[50,1,50,3],[59,1,59,3],[68,1,68,3],[77,1,77,3],[85,1,85,3]]}
[null,"KĀZU BUDŽETS"]
[]
[null,"IZDEVUMI KOPĀ "]
[null,"Prece ","Plānotās izmaksas","Faktiskie"]
[null,"Izdevumu kopsumma ",{"$f":"SUM(Apģērbs[[#Totals],[Plānotās izmaksas]],Dekorācijas[[#Totals],[Plānotās izmaksas]],Dāvanas[[#Totals],[Plānotās izmaksas]],Ziedi[[#Totals],[Plānotās izmaksas]],Mūzika[[#Totals],[Plānotās izmaksas]],Fotografēšana[[#Totals],[Plānotās izmaksas]],Uzņemšana[[#Totals],[Plānotās izmaksas]],Kancelejas_Preces_Un_Poligrāfija[[#Totals],[Plānotās izmaksas]],Transports[[#Totals],[Plānotās izmaksas]],Citi_Izdevumi[[#Totals],[Plānotās izmaksas]])","v":0},{"$f":"SUM(Apģērbs[[#Totals],[Faktiskie]],Dekorācijas[[#Totals],[Faktiskie]],Dāvanas[[#Totals],[Faktiskie]],Ziedi[[#Totals],[Faktiskie]],Mūzika[[#Totals],[Faktiskie]],Fotografēšana[[#Totals],[Faktiskie]],Uzņemšana[[#Totals],[Faktiskie]],Kancelejas_Preces_Un_Poligrāfija[[#Totals],[Faktiskie]],Transports[[#Totals],[Faktiskie]],Citi_Izdevumi[[#Totals],[Faktiskais]],)","v":0}]
[]
[null,"APĢĒRBS"]
[null,"Prece ","Plānotās izmaksas","Faktiskie"]
[null,"Saderināšanās gredzens"]
[null,"Laulību gredzeni"]
[null,"Kāzu kleita"]
[null,"Plīvurs/galvasrota"]
[null,"Citi:"]
[null,"Apģērbs kopā",{"$f":"SUBTOTAL(109,Apģērbs[Plānotās izmaksas])","v":0},{"$f":"SUBTOTAL(109,Apģērbs[Faktiskie])","v":0}]
[]
[null,"ROTĀJUMI"]
[null,"Prece ","Plānotās izmaksas","Faktiskie"]
[null,"Baznīcas rotājumi/citi sēdvietu rotājumi"]
[null,"Galda rotājumi (izņemot ziedus)"]
[null,"Sveces"]
[null,"Apgaismojums"]
[null,"Baloni"]
[null,"Citi:"]
[null,"Dekorācijas kopā",{"$f":"SUBTOTAL(109,Dekorācijas[Plānotās izmaksas])","v":0},{"$f":"SUBTOTAL(109,Dekorācijas[Faktiskie])","v":0}]
[]
[null,"DĀVANAS"]
[null,"Prece ","Plānotās izmaksas","Faktiskie"]
[null,"Viesi"]
[null,"Līgava un līgavainis"]
[null,"Vecāki"]
[null,"Lasītāji / citi dalībnieki"]
[null,"Citi:"]
[null,"Dāvanas kopā",{"$f":"SUBTOTAL(109,Dāvanas[Plānotās izmaksas])","v":0},{"$f":"SUBTOTAL(109,Dāvanas[Faktiskie])","v":0}]
[]
[null,"ZIEDI"]
[null,"Prece ","Plānotās izmaksas","Faktiskie"]
[null,"Pušķi"]
[null,"Piespraužamie ziedu rotājumi"]
[null,"Stiprināmie pušķi"]
[null,"Ceremonija"]
[null,"Citi:"]
[null,"Ziedi kopā",{"$f":"SUBTOTAL(109,Ziedi[Plānotās izmaksas])","v":0},{"$f":"SUBTOTAL(109,Ziedi[Faktiskie])","v":0}]
[]
[null,"MŪZIKA"]
[null,"Prece ","Plānotās izmaksas","Faktiskie"]
[null,"Ceremonijas mūziķi"]
[null,"Grupa/DJ svinībām"]
[null,"Citi:"]
[null,"Mūzika kopā",{"$f":"SUBTOTAL(109,Mūzika[Plānotās izmaksas])","v":0},{"$f":"SUBTOTAL(109,Mūzika[Faktiskie])","v":0}]
[]
[null,"FOTOGRAFĒŠANA"]
[null,"Prece ","Plānotās izmaksas","Faktiskie"]
[null,"Ceremonijas fotogrāfijas"]
[null,"Fotogrāfijas no svinībām"]
[null,"Papildu kopijas"]
[null,"Fotoalbumi"]
[null,"Citi:"]
[null,"Fotografēšana kopā",{"$f":"SUBTOTAL(109,Fotografēšana[Plānotās izmaksas])","v":0},{"$f":"SUBTOTAL(109,Fotografēšana[Faktiskie])","v":0}]
[]
[null,"SVINĪBAS "]
[null,"Prece ","Plānotās izmaksas","Faktiskie"]
[null,"Telpas/zāles izmaksas"]
[null,"Galdi un krēsli"]
[null,"Pārtika"]
[null,"Galdauti"]
[null,"Citi:"]
[null,"Viesu uzņemšana kopā (izņemot mūziku un rotājumus)",{"$f":"SUBTOTAL(109,Uzņemšana[Plānotās izmaksas])","v":0},{"$f":"SUBTOTAL(109,Uzņemšana[Faktiskie])","v":0}]
[]
[null,"VĒSTUĻPAPĪRS UN DRUKĀŠANA"]
[null,"Prece ","Plānotās izmaksas","Faktiskie"]
[null,"Ielūgumi"]
[null,"Paziņojumi"]
[null,"Pateicības kartītes"]
[null,"Personīgais vēstuļpapīrs"]
[null,"Citi:"]
[null,"Apdrukas materiāli/drukāšana kopā",{"$f":"SUBTOTAL(109,Kancelejas_Preces_Un_Poligrāfija[Plānotās izmaksas])","v":0},{"$f":"SUBTOTAL(109,Kancelejas_Preces_Un_Poligrāfija[Faktiskie])","v":0}]
[]
[null,"TRANSPORTS"]
[null,"Prece ","Plānotās izmaksas","Faktiskie"]
[null,"Limuzīni/autobusi"]
[null,"Autostāvvieta"]
[null,"Taksometri"]
[null,"Citi:"]
[null,"Transports kopā",{"$f":"SUBTOTAL(109,Transports[Plānotās izmaksas])","v":0},{"$f":"SUBTOTAL(109,Transports[Faktiskie])","v":0}]
[]
[null,"CITI IZDEVUMI"]
[null,"Prece ","Plānotās izmaksas","Faktiskais"]
[null,"Oficiants"]
[null,"Baznīcas/ceremonijas norises vietas apmaksa"]
[null,"Kāzu koordinators"]
[null,"Izmēģinājuma vakariņas"]
[null,"Citi:"]
[null,"Citi izdevumi kopā",{"$f":"SUBTOTAL(109,Citi_Izdevumi[Plānotās izmaksas])","v":0},{"$f":"SUBTOTAL(109,Citi_Izdevumi[Faktiskais])","v":0}]